Workbook

Sheet Farm Calculator
B2: How much will farmers spend or save by vaccinating their cattle against BTV-3?
B5: Step 1. Input your data in the blue cells
B7: How many store cattle do you have? | C7: 4 | D7: Use the number of store or finishing cattle
B9: How many breeding females do you have? | C9: 6 | D9: Heifers and cows you expect to breed from
B11: What is the expected store or finishing cattle value? | C11: 1784 | D11: Default £1784 is the 2024 average deadweight steer figure
B13: What is the expected breeding female value? | C13: 2500 | D13: Default £2500 is a suggested figure
B15: What is the vaccination cost per animal? | C15: 10 | D15: Please talk to your vet to get an up-to-date figure
B17: Step 2. Review your results
B19: The tables below show the impact of BTV-3 infection in different scenarios, based on the numbers you provide in step 1. The scenarios represent mild infection (A) through to severe infection (D). AHDB has developed each scenario based on actual data from the UK and mainland Europe.
B20: The calculator doesn't allow you to mix the scenarios - so the results won't be valid if you take productivity costs from Scenario A and add mortality costs from Scenario B etc. You need to follow the same scenario throughout.
B22: Productivity costs - we estimate that infected cattle will lose around 10% of their value due to slower growth and the additional treatment costs.
B23: Scenario | C23: Store cattle | D23: Breeding cattle | E23: Total
A24: 0.1 | B24: A) If 10% of your cattle are infected | C24: =$C$7*(A24*$B$72)*$C$11 -> 71.36 | D24: =$C$9*A24*($C$13*$B$72) -> 150 | E24: =SUM(C24:D24) -> 221.36
A25: 0.15 | B25: B) If 15% of your cattle are infected | C25: =$C$7*(A25*$B$72)*$C$11 -> 107.04 | D25: =$C$9*A25*($C$13*$B$72) -> 225 | E25: =SUM(C25:D25) -> 332.04
A26: 0.25 | B26: C) If 25% of your cattle are infected | C26: =$C$7*(A26*$B$72)*$C$11 -> 178.4 | D26: =$C$9*A26*($C$13*$B$72) -> 375 | E26: 553.4
A27: 0.3 | B27: D) If 30% of your cattle are infected | C27: =$C$7*(A27*$B$72)*$C$11 -> 214.08 | D27: =$C$9*A27*($C$13*$B$72) -> 450 | E27: 664.08
B29: Mortality costs - the lost value from cattle that die
B30: Scenario | C30: Store cattle | D30: Breeding cattle | E30: Total
A31: 0.01 | B31: A) If 1% of infected animals die | C31: =($C$7*A24*A31)*$C$11 -> 7.136 | D31: =($C$9*A24*A31)*$C$13 -> 15 | E31: =SUM(C31:D31) -> 22.136
A32: 0.025 | B32: B) If 2.5% of infected animals die | C32: =($C$7*A25*A32)*$C$11 -> 26.76 | D32: =($C$9*A25*A32)*$C$13 -> 56.25 | E32: =SUM(C32:D32) -> 83.01
A33: 0.04 | B33: C) If 4% of infected animals die | C33: =($C$7*A26*A33)*$C$11 -> 71.36 | D33: =($C$9*A26*A33)*$C$13 -> 150 | E33: 221.36
A34: 0.06 | B34: D) If 6% of infected animals die | C34: =($C$7*A27*A34)*$C$11 -> 128.448 | D34: =($C$9*A27*A34)*$C$13 -> 270 | E34: 398.448
B36: Fertility costs - infected cattle can have reduced fertility
B37: Scenario | C37: Store cattle | D37: Breeding cattle | E37: Total
A38: 0 | B38: A) 0% reduction in calves from infected cattle | C38: n/a | D38: =($C$9*A38*A24)*$C$11 -> 0 | E38: =D38 -> 0
A39: 0.15 | B39: B) 15% reduction in calves from infected cattle | C39: n/a | D39: =($C$9*A39*A25)*$C$11 -> 240.84 | E39: =D39 -> 240.84
A40: 0.3 | B40: C) 30% reduction in calves from infected cattle | C40: n/a | D40: =($C$9*A40*A26)*$C$11 -> 802.8 | E40: 802.8
A41: 0.5 | B41: D) 50% reduction in calves from infected cattle | C41: n/a | D41: =($C$9*A41*A27)*$C$11 -> 1605.6 | E41: 1605.6
B43: Step 3. Understand the cost of vaccination
C45: Store cattle | D45: Breeding cattle | E45: Total
B46: How much will it cost to vaccinate your cattle? | C46: =C7*C15 -> 40 | D46: =C9*C15 -> 60 | E46: =D46+C46 -> 100
B48: How much will vaccinating your cattle save you? - we assume a 50% reduction in infections and 75% reduction in mortality.
B50: Scenario | C50: Store cattle | D50: Breeding cattle | E50: Total
B51: Scenario A - Mild infection | C51: =(C24*$B$70)+(C31*$F$70) -> 44.6 | D51: =(D24*$B$70)+(D31*$F$70)+(D38*$B$70) -> 93.75 | E51: =D51+C51 -> 138.35
B52: Scenario B - Mild to moderate infection | C52: =(C25*$B$70)+(C32*$F$70) -> 86.97 | D52: =(D25*$B$70)+(D32*$F$70)+(D39*$B$70) -> 303.2325 | E52: =D52+C52 -> 390.2025
B53: Scenario C - Moderate to severe infection | C53: =(C26*$B$70)+(C33*$F$70) -> 178.4 | D53: =(D26*$B$70)+(D33*$F$70)+(D40*$B$70) -> 776.4 | E53: 954.8
B54: Scenario D - Severe infection | C54: =(C27*$B$70)+(C34*$F$70) -> 267.6 | D54: =(D27*$B$70)+(D34*$F$70)+(D41*$B$70) -> 1365.3 | E54: 1632.9
B57: 1. Savings are calculated by accounting for the number of cattle you have identified, the cost of the vaccine and the effect of productivity, mortality and reduced fertility. It does not include costs associated with gathering the herd for vaccination, labour and consumables or costs for the disposal of dead stock.
B58: 2. The calculator does not assess the impact on breeding bulls, which should be the highest priority cattle for vacination on farm due to their high value and the potential impact of BTV-3 on the bull's fertllity.
B59: 3. BTV-3 is an emerging disease and there is a high level on uncertainty around the fertility impacts of the disease including how severe clinical signs are in calves. The fertility scenarios are very broad, relecting this uncertainty. Scenario D with a 50% reduction is most likely to occur with an infected bull, but there are some farms with high levels of abortion/deformed calves which are purely related to infected cows.
B60: 4. Results from this calculator are based on a series of assumptions and should be treated as a tool to aid decision-making on-farm. Actual impacts will vary depending on the specific outbreak of BTV-3. Always seek advice of your vet to fully assess the risks and the cost-benefits as part of your herd health planning. Please note that vaccination will reduce clinical signs and mortality, but it will not eliminate them altogether.
B61: For more information and advice on Bluetongue please visit the AHDB website:
B62: Bluetongue virus latest news | AHDB
A69: hidden data
A70: vaccination impact on infection | B70: 0.5 | C70: set value which can not be changed | F70: =B71+B70 -> 1.25 | G70: vaccination impact on ingection + mortality
A71: vaccination impact on mortality | B71: 0.75 | C71: set value which can not be changed
A72: value drop for infected cattle | B72: 0.1 | C72: set value which can not be changed
B75: Store cattle vaccination cost | C75: Store cattle savings | D75: Breeding cattle vaccination cost | E75: Breeding cattle savings
B76: =C46 -> 40 | C76: =C51 -> 44.6 | D76: =D46 -> 60 | E76: =D51 -> 93.75
B77: =C46 -> 40 | C77: =C52 -> 86.97 | D77: =D46 -> 60 | E77: =D52 -> 303.2325
B78: =C46 -> 40 | C78: =C53 -> 178.4 | D78: =D46 -> 60 | E78: 776.4
B79: =C46 -> 40 | C79: =C54 -> 267.6 | D79: =D46 -> 60 | E79: 1365.3
B83: Productivity costs | C83: Mortality costs | D83: Fertility costs
A84: Scenario A - mild | B84: =E24 -> 221.36 | C84: =E31 -> 22.136 | D84: =D38 -> 0
A85: Scenario B - mild to moderate | B85: =E25 -> 332.04 | C85: =E32 -> 83.01 | D85: =D39 -> 240.84
A86: Scenario C - moderate to severe | B86: =E26 -> 553.4 | C86: =E33 -> 221.36 | D86: =D40 -> 802.8
A87: Scenario D - severe | B87: =E27 -> 664.08 | C87: =E34 -> 398.448 | D87: =D41 -> 1605.6
